bitfinex-derivatives/quotes_BTCF0:USTF0_20251011
["timestamp","ask_amount","ask_price","bid_price","bid_amount"]
[1760148419131,0.0892113,111970.0,111960.0,0.01766]
[1760148419729,0.3608,111980.0,111950.0,0.3608]
[1760148419932,0.0892053,111980.0,111960.0,0.01766]
[1760148420132,7.617e-05,111970.0,111960.0,0.37846]
[1760148420632,7.617e-05,111970.0,111960.0,0.77846]
[1760148420840,0.08928747,111970.0,111960.0,0.01766]
[1760148421138,7.617e-05,111970.0,111960.0,0.01766]
[1760148421329,7.617e-05,111970.0,111960.0,0.77846]
[1760148421836,7.617e-05,111970.0,111960.0,0.37846]
[1760148422027,7.617e-05,111970.0,111960.0,0.01766]
[1760148422231,7.617e-05,111970.0,111960.0,0.77846]
[1760148422634,7.617e-05,111970.0,111960.0,0.89846]
[1760148422829,0.08928747,111970.0,111960.0,0.01766]
[1760148423035,7.617e-05,111970.0,111960.0,0.01766]
[1760148423235,0.08928747,111970.0,111960.0,0.01766]
[1760148423927,7.617e-05,111970.0,111960.0,0.01766]
[1760148424133,0.08928747,111970.0,111960.0,0.37846]
[1760148424334,0.0892193,111960.0,111950.0,0.3608]
[1760148424635,0.08928927,111970.0,111950.0,0.3608]
[1760148424833,8.392e-05,111960.0,111940.0,0.01766]
[1760148425134,8.392e-05,111960.0,111950.0,0.3608]
[1760148425338,0.1206607,112010.0,111960.0,0.01766]
[1760148425540,0.0314792,112010.0,112000.0,0.01766]
[1760148425733,0.91225162,112020.0,112000.0,0.00605515]
[1760148425734,0.8958992,112020.0,112000.0,0.00605515]
[1760148425935,0.0891795,112010.0,112000.0,0.00605515]
[1760148426130,0.3922792,112020.0,112000.0,0.00605515]
[1760148426328,0.0314792,112030.0,112010.0,0.3608]
[1760148426532,0.52926572,112050.0,112020.0,0.37846]
[1760148426734,0.0314792,112050.0,112040.0,0.3608]
[1760148426938,0.1206189,112060.0,112040.0,0.37846]
[1760148427240,0.4814174,112070.0,112040.0,0.37846]
[1760148427538,0.0891317,112070.0,112060.0,0.01766]
[1760148427735,0.0891317,112070.0,112060.0,0.37846]
[1760148427944,0.3922792,112080.0,112060.0,0.37846]
[1760148428237,0.1206042,112080.0,112060.0,0.37846]
[1760148428637,0.0314792,112080.0,112070.0,0.3608]
[1760148428834,0.04783162,112090.0,112080.0,0.01917]
[1760148428835,0.1205959,112090.0,112080.0,0.01917]
[1760148429230,0.0891238,112080.0,112060.0,0.37846]
[1760148429739,0.4813964,112090.0,112060.0,0.37846]
[1760148429935,0.4813964,112090.0,112070.0,0.3608]
[1760148430338,0.40863162,112100.0,112070.0,0.3608]
[1760148430339,0.0314792,112100.0,112080.0,0.37997]
[1760148430537,0.49772932,112120.0,112100.0,0.01917]
[1760148430538,0.4813769,112120.0,112100.0,0.01917]
[1760148430737,0.0314792,112120.0,112110.0,0.3608]
[1760148430931,0.0314792,112120.0,112100.0,0.36547783]
[1760148430932,0.1205727,112120.0,112100.0,0.36547783]
[1760148431143,0.0890999,112110.0,112100.0,0.36547783]
[1760148431339,0.0891079,112100.0,112090.0,0.3608]
[1760148431637,0.0891158,112090.0,112070.0,0.3608]
[1760148431838,0.0891158,112090.0,112060.0,0.01766]
[1760148431839,0.0891317,112070.0,112060.0,0.37846]
[1760148432035,0.0891317,112070.0,112060.0,0.01766]
[1760148432241,0.0891397,112060.0,112040.0,0.37846]
[1760148432835,0.0891614,112040.0,112020.0,0.37997]
[1760148433038,0.1206406,112040.0,112020.0,0.01917]
[1760148433739,0.0891614,112040.0,112020.0,0.37997]
[1760148433937,0.0891636,112030.0,112010.0,0.3608]
[1760148434741,0.3922792,112030.0,112000.0,0.37997]
[1760148434949,0.0891795,112010.0,112000.0,0.01917]
[1760148435134,0.4814521,112020.0,112000.0,0.01917]
[1760148435336,0.4499795,112010.0,112000.0,0.01917]
[1760148435532,0.0891874,112000.0,111990.0,0.3608]
[1760148435742,0.3922792,112020.0,111990.0,0.3608]
[1760148435936,0.0891796,112010.0,111980.0,0.0192698]
[1760148436138,0.0891796,112010.0,111990.0,0.3608]
[1760148436334,0.3922792,112020.0,112000.0,0.01917]
[1760148436537,0.3922792,112030.0,112010.0,0.3608]
[1760148436737,0.0891649,112030.0,112010.0,0.3608]
[1760148437138,0.1206362,112040.0,112020.0,0.37997]
[1760148437341,0.0891636,112030.0,112020.0,0.01917]
[1760148437733,0.4891636,112030.0,112000.0,0.37997]
[1760148437943,0.1206428,112030.0,112000.0,0.37997]
[1760148438135,0.4814428,112030.0,112000.0,0.37997]
[1760148438340,0.0891795,112010.0,112000.0,0.3608]
[1760148438540,0.4499795,112010.0,111980.0,0.3800698]
[1760148438746,0.0891874,112000.0,111980.0,0.3800698]
[1760148438948,0.4814602,112010.0,111980.0,0.3800698]
[1760148439243,0.0891881,112000.0,111980.0,0.3800698]
[1760148439640,0.1206588,112010.0,111980.0,0.3800698]
[1760148439950,0.1206635,112010.0,111980.0,0.3800698]
[1760148440346,0.0891876,112000.0,111980.0,0.3800698]
[1760148441349,0.0891954,111990.0,111980.0,0.3800698]
[1760148441648,0.0891954,111990.0,111940.0,0.01917]
[1760148441649,0.0892122,111970.0,111950.0,0.3608]
[1760148441845,0.4814831,111980.0,111940.0,0.37997]
[1760148442037,0.4814831,111980.0,111950.0,0.3608]
[1760148442443,0.450019,111970.0,111940.0,0.37997]
[1760148442643,9.141e-05,111960.0,111950.0,0.3608]
[1760148443445,0.33757581,111980.0,111950.0,0.7608]
[1760148443644,0.40863162,111990.0,111960.0,0.37997]
[1760148443844,0.3608,111990.0,111960.0,0.01917]
[1760148444042,0.3608,111980.0,111940.0,0.37997]
[1760148444347,0.0892175,111970.0,111950.0,0.3608]
[1760148444549,0.0892175,111970.0,111960.0,0.3608]
[1760148444850,0.089204,111980.0,111960.0,0.3608]
[1760148445051,0.450004,111980.0,111960.0,0.3608]
[1760148445252,0.089204,111980.0,111960.0,0.3608]
[1760148445550,0.0892113,111970.0,111960.0,0.3608]
[1760148445949,0.4892113,111970.0,111960.0,0.3608]
[1760148447857,0.0892251,111960.0,111940.0,0.01917]
[1760148448152,0.0892251,111960.0,111940.0,0.37997]
[1760148448647,0.3608,111970.0,111950.0,0.3608]
[1760148448847,0.0892193,111960.0,111950.0,0.3608]
[1760148449054,0.4500138,111970.0,111950.0,0.3608]
[1760148450048,0.0892138,111970.0,111950.0,0.3608]
[1760148450648,0.0892138,111970.0,111960.0,0.3608]
[1760148450853,0.3608,111980.0,111960.0,0.3608]
[1760148451055,0.3608,111980.0,111950.0,0.3608]
[1760148451450,0.3608,111990.0,111960.0,0.37997]
[1760148451652,0.3608,112000.0,111980.0,0.37997]
[1760148451849,0.0891961,111990.0,111980.0,0.37997]
[1760148452047,0.0891961,111990.0,111970.0,0.3608]
[1760148452252,0.0891954,111990.0,111980.0,0.3608]
[1760148452453,0.0892049,111980.0,111970.0,0.3608]
[1760148452752,0.0892113,111970.0,111960.0,0.37997]
[1760148452946,0.3608,111970.0,111950.0,0.3608]
[1760148453151,0.0892273,111950.0,111940.0,0.37997]
[1760148453552,0.089242,111940.0,111930.0,0.3608]
[1760148453757,0.35310373,111940.0,111920.0,0.01917]
[1760148454056,0.44233323,111950.0,111930.0,0.3608]
[1760148454251,0.44233323,111950.0,111920.0,0.37997]
[1760148454252,0.0892355,111940.0,111920.0,0.37997]
[1760148454654,0.0892448,111940.0,111920.0,0.37997]
[1760148454856,0.0892521,111930.0,111900.0,0.37997]
[1760148455162,0.0892656,111920.0,111900.0,0.37997]
[1760148455748,0.44237163,111910.0,111890.0,7.807e-05]
[1760148456052,0.0892758,111900.0,111890.0,7.807e-05]
[1760148456855,0.8500758,111900.0,111890.0,7.807e-05]
[1760148457059,0.0892838,111890.0,111850.0,0.3608]
[1760148457254,0.4501003,111870.0,111850.0,0.3608]
[1760148457460,0.0893003,111870.0,111850.0,0.3608]
[1760148457648,0.0892934,111880.0,111850.0,0.3608]
[1760148457854,0.80318973,111890.0,111860.0,0.01917]
[1760148458153,0.0892998,111870.0,111860.0,0.37997]
[1760148458462,0.08939479,111870.0,111860.0,0.01917]
[1760148458654,9.499e-05,111870.0,111860.0,0.37948]
[1760148458855,0.35295062,111880.0,111860.0,0.01868]
[1760148459064,0.62445872,111880.0,111860.0,0.37948]
[1760148459357,0.62445872,111880.0,111860.0,0.01868]
[1760148459358,0.71375082,111880.0,111860.0,0.01868]
[1760148459559,0.62445872,111880.0,111860.0,0.01868]
[1760148459754,0.35310373,111880.0,111860.0,0.37948]
[1760148459951,0.0892998,111870.0,111840.0,0.37997]
[1760148460152,0.0893092,111860.0,111840.0,0.01917]
[1760148460552,0.450102,111870.0,111840.0,0.01917]
[1760148460861,0.450102,111870.0,111840.0,0.37997]
[1760148461056,0.80320573,111870.0,111840.0,0.37997]
[1760148461259,0.00923,111880.0,111860.0,0.01868]
[1760148461453,0.4593231,111880.0,111860.0,0.01868]
[1760148461657,0.37003,111880.0,111860.0,0.37948]
[1760148461855,0.37003,111880.0,111860.0,0.01868]
[1760148461856,0.00923,111880.0,111860.0,0.01868]
[1760148462050,0.00923,111880.0,111870.0,0.3608]
[1760148462467,0.00923,111880.0,111860.0,0.37948]
[1760148462655,0.00923,111880.0,111870.0,0.3608]
[1760148463054,0.0985218,111880.0,111870.0,0.3608]
[1760148463259,0.40923,111880.0,111870.0,0.3608]
[1760148463463,0.00923,111880.0,111870.0,0.3608]
[1760148464360,0.4985246,111880.0,111860.0,0.01868]
[1760148464563,0.4593246,111880.0,111860.0,0.01868]
[1760148464858,0.0892998,111870.0,111860.0,0.01868]
[1760148465060,0.80320353,111870.0,111840.0,0.37997]
[1760148465254,0.44240353,111870.0,111840.0,0.37997]
[1760148465455,0.4593221,111880.0,111860.0,0.37948]
[1760148465659,0.00923,111880.0,111870.0,0.3608]
[1760148466266,0.00923,111880.0,111870.0,0.8500998]
[1760148466668,0.32959963,111920.0,111880.0,0.01868]
[1760148466964,0.0892679,111910.0,111890.0,0.3608]
[1760148467166,0.0892759,111900.0,111890.0,0.3608]
[1760148467365,0.0892703,111910.0,111890.0,0.3608]
[1760148467565,0.3608,111920.0,111900.0,0.01868]
[1760148467566,0.80316673,111920.0,111900.0,0.01868]
[1760148467761,0.44236673,111920.0,111900.0,0.37948]
[1760148467962,0.80316673,111920.0,111900.0,0.37948]
[1760148468368,0.80316673,111920.0,111900.0,0.01868]
[1760148468868,0.0892679,111910.0,111900.0,0.01868]
[1760148469066,0.0892838,111890.0,111880.0,0.37948]
[1760148469262,0.0892838,111890.0,111880.0,0.01868]
[1760148469670,0.80318303,111900.0,111880.0,0.01868]
[1760148469862,0.0892839,111890.0,111880.0,0.01868]
[1760148470267,0.0892998,111870.0,111860.0,0.37948]
[1760148470472,0.0892998,111870.0,111860.0,0.01868]
[1760148470676,0.0892934,111880.0,111860.0,0.01868]
[1760148470874,0.0892998,111870.0,111860.0,0.01868]
[1760148471076,0.44240353,111870.0,111850.0,0.3608]
[1760148471374,0.71390373,111870.0,111840.0,0.37997]
[1760148471576,0.4501025,111870.0,111840.0,0.01917]
[1760148471772,0.0892998,111870.0,111860.0,0.01822]
[1760148472176,0.4500998,111870.0,111860.0,0.01822]
[1760148472779,0.0893078,111860.0,111840.0,0.37997]
[1760148473377,0.44240013,111880.0,111860.0,0.01822]
[1760148473583,0.44240013,111880.0,111860.0,0.37902]
[1760148473781,0.0892919,111880.0,111860.0,0.37902]
[1760148473982,0.4500866,111890.0,111860.0,0.37902]
[1760148474282,0.0892935,111880.0,111860.0,0.37902]
[1760148474478,0.0892998,111870.0,111860.0,0.01822]
[1760148474682,0.0893124,111860.0,111840.0,0.37997]
[1760148474986,0.0893124,111860.0,111820.0,0.01822]
[1760148474987,0.39262417,111850.0,111820.0,0.37902]
[1760148475181,0.0893318,111830.0,111820.0,0.37902]
[1760148475484,0.0893164,111850.0,111840.0,0.01822]
[1760148475881,0.0893239,111840.0,111830.0,0.3608]
[1760148476082,0.0893239,111840.0,111820.0,0.37902]
[1760148476477,0.7457279,111850.0,111820.0,0.01822]
[1760148476478,0.0893319,111830.0,111820.0,0.01822]
[1760148476873,0.84243563,111830.0,111820.0,0.01822]
[1760148477077,0.84243563,111830.0,111810.0,0.3608]
[1760148477280,0.44243563,111830.0,111810.0,0.3608]
[1760148477785,0.44243563,111830.0,111820.0,0.3608]
[1760148478285,0.0893479,111810.0,111800.0,0.37913555]
[1760148478583,0.0893479,111810.0,111800.0,0.01833555]
[1760148478976,0.4501479,111810.0,111800.0,0.01833555]
[1760148479376,0.8501479,111810.0,111800.0,0.01833555]
[1760148479579,0.8501479,111810.0,111800.0,0.00011555]
[1760148480785,0.12116747,111820.0,111800.0,0.37913555]
[1760148480985,0.03182417,111820.0,111800.0,0.37913555]
[1760148481174,0.44244243,111830.0,111820.0,0.01822]
[1760148481380,0.0893427,111820.0,111800.0,0.01833555]
[1760148481585,0.0893427,111820.0,111800.0,0.37913555]
[1760148481884,0.7457279,111830.0,111800.0,0.37913555]
[1760148482081,0.35310373,111810.0,111800.0,0.00011555]
[1760148482284,0.12117207,111810.0,111800.0,0.00011555]
[1760148482581,0.8350758,111810.0,111800.0,0.00011555]
[1760148483284,1.2350758,111810.0,111800.0,0.00011555]
[1760148483479,0.0893719,111780.0,111770.0,0.3608]
[1760148483682,0.47437664,111790.0,111770.0,0.3608]
[1760148483877,0.0893719,111780.0,111770.0,0.3608]
[1760148484280,0.0893751,111780.0,111760.0,0.01822]
[1760148484477,8.726e-05,111770.0,111760.0,0.37902]
[1760148484682,8.726e-05,111770.0,111760.0,0.4684079]
[1760148485185,8.726e-05,111770.0,111760.0,0.37902]
[1760148485578,8.726e-05,111770.0,111760.0,0.77902]
[1760148485779,8.726e-05,111770.0,111760.0,0.8684079]
[1760148485977,0.35310373,111810.0,111760.0,0.8684079]
[1760148486182,0.45245173,111810.0,111800.0,0.01822]
[1760148486379,0.81325173,111810.0,111800.0,0.01822]
[1760148486588,0.0893639,111790.0,111780.0,0.37902]
[1760148486986,0.84246763,111790.0,111780.0,0.01822]
[1760148487188,1.20330798,111790.0,111760.0,0.37902]
[1760148487487,0.0893799,111770.0,111760.0,0.01822]
[1760148487681,0.08942025,111770.0,111760.0,0.01822]
[1760148488286,1.20332398,111770.0,111760.0,0.01822]
[1760148488486,0.0893879,111760.0,111750.0,0.3608]
[1760148488684,4.035e-05,111760.0,111750.0,0.3608]
[1760148489885,0.089375,111780.0,111760.0,0.0176]
[1760148490091,0.80326833,111790.0,111760.0,0.3784]
[1760148490294,0.44247433,111790.0,111780.0,0.0176]
[1760148490791,0.80327433,111790.0,111760.0,0.3784]
[1760148491087,0.44248363,111770.0,111760.0,0.3784]
[1760148491291,0.44248363,111770.0,111760.0,0.0176]
[1760148491488,0.44248363,111770.0,111760.0,0.3784]
[1760148491889,0.44248363,111770.0,111760.0,0.0176]
[1760148492083,0.0893879,111760.0,111750.0,0.3784]
[1760148492385,0.0893959,111750.0,111740.0,0.37902]
[1760148492789,0.44249963,111750.0,111740.0,0.37902]
[1760148493289,0.0893959,111750.0,111740.0,0.37902]
[1760148493492,0.50582134,111750.0,111740.0,0.37902]
[1760148493679,0.50581134,111770.0,111740.0,0.77902]
[1760148493879,0.50581134,111770.0,111760.0,0.3608]
[1760148494081,0.41642544,111770.0,111760.0,0.3608]
[1760148494286,0.50579154,111790.0,111780.0,0.0176]
[1760148494487,0.50579154,111790.0,111780.0,0.3784]
[1760148494785,0.90578934,111790.0,111760.0,0.3608]
[1760148494984,0.90578934,111790.0,111750.0,0.3608]
[1760148494985,0.0893879,111760.0,111750.0,0.3608]
[1760148495381,0.50580804,111770.0,111750.0,0.3608]
[1760148495589,0.3608,111780.0,111750.0,0.3608]
[1760148495590,0.50579834,111780.0,111760.0,0.3784]
[1760148495886,0.41642544,111780.0,111770.0,0.3608]
[1760148496079,0.50579784,111780.0,111770.0,0.3608]
[1760148496490,0.0893799,111770.0,111760.0,0.0176]
[1760148496687,0.0893799,111770.0,111760.0,0.3784]
[1760148497388,0.0893799,111770.0,111760.0,0.0176]
[1760148497389,0.50580534,111770.0,111760.0,0.0176]
[1760148497589,0.42318524,111770.0,111760.0,0.0176]
[1760148497789,0.0893879,111760.0,111750.0,0.3608]
[1760148497989,0.50581334,111760.0,111750.0,0.3608]
[1760148498297,0.0893959,111750.0,111740.0,0.37902]
[1760148498488,0.0894039,111740.0,111730.0,0.0176]
[1760148498688,0.50582934,111740.0,111730.0,0.0176]
[1760148498884,0.0894119,111730.0,111720.0,0.0176]
[1760148499088,0.77722544,111730.0,111710.0,0.3608]
[1760148499386,0.50584534,111720.0,111710.0,0.3608]
[1760148499591,0.50584534,111720.0,111700.0,0.3784]
[1760148499592,0.0894279,111710.0,111700.0,0.3784]
[1760148499791,0.50585334,111710.0,111700.0,0.3784]
[1760148500291,0.0894358,111700.0,111690.0,7.905e-05]
[1760148500486,0.50586124,111700.0,111690.0,7.905e-05]
[1760148501084,0.86666124,111700.0,111690.0,7.905e-05]
[1760148501295,1.26666124,111700.0,111690.0,7.905e-05]
[1760148501490,0.90586124,111700.0,111690.0,7.905e-05]
[1760148501799,0.50586124,111700.0,111690.0,7.905e-05]
[1760148502288,0.50585494,111710.0,111690.0,0.36087905]
[1760148502489,0.50586124,111700.0,111690.0,0.36087905]
[1760148502690,0.50586124,111700.0,111690.0,7.905e-05]
[1760148503495,0.50586124,111700.0,111690.0,0.36087905]
[1760148503690,0.77722544,111720.0,111700.0,0.0176]
[1760148503997,0.0894278,111710.0,111700.0,0.3784]
[1760148504294,0.0894278,111710.0,111700.0,0.0176]
[1760148504495,0.0894278,111710.0,111690.0,0.36087905]
[1760148504496,0.0894358,111700.0,111690.0,7.905e-05]
[1760148504693,0.50586124,111700.0,111690.0,7.905e-05]
[1760148505089,0.0894358,111700.0,111690.0,7.905e-05]
[1760148505396,0.0894358,111700.0,111690.0,0.36087905]
[1760148505397,0.32786124,111700.0,111690.0,0.36087905]
[1760148506002,0.41729704,111700.0,111690.0,7.905e-05]
[1760148506393,0.0894358,111700.0,111690.0,0.36087905]
[1760148506692,0.3608,111720.0,111700.0,0.0176]
[1760148506898,0.4502222,111720.0,111700.0,0.3784]
[1760148507098,0.0894222,111720.0,111700.0,0.3784]
[1760148507296,0.0894222,111720.0,111710.0,0.3608]
[1760148507686,0.12130691,111750.0,111720.0,0.0176]
[1760148507893,0.0894013,111750.0,111740.0,0.0176]
[1760148508289,0.0894013,111750.0,111740.0,0.7784]
[1760148508496,0.0893937,111760.0,111740.0,0.7784]
[1760148508800,0.0893958,111750.0,111740.0,0.3784]
[1760148509699,0.0893907,111760.0,111740.0,0.3784]
[1760148509901,0.0893907,111760.0,111750.0,0.3608]
[1760148511301,0.50581614,111760.0,111750.0,0.3608]
[1760148512694,0.0893907,111760.0,111750.0,0.3608]
[1760148512893,0.72052175,111770.0,111750.0,0.3608]
[1760148513094,0.79722544,111770.0,111750.0,0.3784]
[1760148513300,0.52580524,111770.0,111760.0,0.0176]
[1760148513803,0.0893878,111760.0,111750.0,0.0176]
[1760148513998,1.11661324,111760.0,111750.0,0.0176]
[1760148514295,0.0894038,111740.0,111730.0,0.3784]
[1760148514496,0.0894118,111730.0,111720.0,0.0176]
[1760148514995,0.0894198,111720.0,111710.0,0.0176]
[1760148515195,0.0894198,111720.0,111700.0,0.0176]
[1760148515196,0.0894278,111710.0,111700.0,0.0176]
[1760148515603,0.50585324,111710.0,111700.0,0.0176]
[1760148515797,0.0894358,111700.0,111690.0,0.01767905]
[1760148516001,0.91431611,111700.0,111690.0,7.905e-05]
[1760148516204,0.86666124,111700.0,111690.0,7.905e-05]
[1760148516797,0.50586124,111700.0,111690.0,7.905e-05]
[1760148516993,0.40845487,111720.0,111690.0,0.76087905]
[1760148517296,0.13707797,111720.0,111700.0,0.3784]
[1760148517496,0.0894278,111710.0,111700.0,0.3784]
[1760148517899,0.50585324,111710.0,111700.0,0.0176]
[1760148518105,0.0894278,111710.0,111700.0,0.3784]
[1760148519303,0.50585324,111710.0,111700.0,0.0176]
[1760148519496,0.40845487,111720.0,111690.0,0.36087905]
[1760148519497,0.0894359,111700.0,111690.0,0.36087905]
[1760148519907,0.50586134,111700.0,111690.0,7.905e-05]
[1760148520709,0.0894359,111700.0,111690.0,7.905e-05]
[1760148521211,0.0894359,111700.0,111690.0,0.01715905]
[1760148521906,0.55351621,111700.0,111690.0,0.01715905]
[1760148522209,0.13709077,111700.0,111690.0,0.37795905]
[1760148522403,0.04765487,111700.0,111690.0,0.37795905]
[1760148522708,0.0894231,111720.0,111710.0,0.01708]
[1760148522907,0.14737449,111720.0,111710.0,0.37788]
[1760148523109,0.56379993,111720.0,111710.0,0.01708]
[1760148523496,0.0894279,111710.0,111700.0,0.37788]
[1760148523703,0.50585334,111710.0,111700.0,0.37788]
[1760148523911,0.55380473,111710.0,111700.0,0.01708]
[1760148524204,0.55380473,111710.0,111700.0,0.37788]
[1760148524408,0.55380473,111710.0,111700.0,0.01708]
[1760148525008,0.0894359,111700.0,111690.0,0.37795905]
[1760148525702,0.56939677,111710.0,111700.0,0.01708]
[1760148527007,0.0894359,111700.0,111690.0,0.37795905]
[1760148527909,0.50586134,111700.0,111690.0,0.37795905]
[1760148528109,0.73586134,111700.0,111690.0,0.37795905]
[1760148528308,0.50586134,111700.0,111690.0,0.37795905]
[1760148528504,0.82940117,111700.0,111690.0,7.905e-05]
[1760148528801,0.56940117,111700.0,111690.0,7.905e-05]
[1760148529005,0.93020117,111700.0,111690.0,7.905e-05]
[1760148529310,1.17020117,111700.0,111690.0,7.905e-05]
[1760148529509,0.93020117,111700.0,111690.0,7.905e-05]
[1760148529710,0.56940117,111700.0,111690.0,7.905e-05]
[1760148529910,0.93020117,111700.0,111690.0,7.905e-05]
[1760148530112,0.84940117,111700.0,111690.0,7.905e-05]
[1760148530405,0.93020117,111700.0,111690.0,7.905e-05]
[1760148530606,0.56940117,111700.0,111690.0,0.01701905]
[1760148531007,0.79940117,111700.0,111690.0,7.905e-05]
[1760148531200,0.81940117,111700.0,111690.0,7.905e-05]
[1760148531607,0.83940117,111700.0,111690.0,0.01701905]
[1760148531910,0.93020117,111700.0,111690.0,0.01701905]
[1760148532207,0.56940117,111700.0,111690.0,0.01701905]
[1760148532605,0.56940117,111700.0,111690.0,0.37781905]
[1760148533512,0.85940117,111700.0,111690.0,0.37781905]
[1760148533706,0.56940117,111700.0,111690.0,0.37781905]
[1760148533911,0.56940117,111700.0,111690.0,0.01701905]
[1760148534102,0.93020117,111700.0,111690.0,0.01701905]
[1760148534306,0.95666134,111700.0,111690.0,0.01701905]
[1760148534509,0.50586134,111700.0,111690.0,0.01701905]
[1760148534712,0.0894359,111700.0,111690.0,0.37781905]
[1760148535401,0.37588898,111710.0,111690.0,0.37781905]
[1760148535705,0.50586134,111700.0,111690.0,0.37781905]
[1760148535909,1.34468898,111700.0,111690.0,7.905e-05]
[1760148536105,0.0894599,111670.0,111660.0,0.01708]
[1760148536310,0.0894599,111670.0,111660.0,0.37788]
[1760148536705,0.50588534,111670.0,111660.0,0.37788]
[1760148537112,0.55399108,111670.0,111660.0,0.01708]
[1760148537611,0.04810574,111670.0,111660.0,0.77788]
[1760148537912,7.905e-05,111670.0,111660.0,0.77788]
[1760148538103,0.04810574,111670.0,111660.0,0.77788]
[1760148538304,0.13756564,111670.0,111660.0,0.37788]
[1760148538506,0.55399108,111670.0,111660.0,0.01708]
[1760148538806,0.0894679,111660.0,111650.0,0.01694]
[1760148539007,0.13756742,111660.0,111650.0,0.37774]
[1760148539207,0.13756742,111660.0,111650.0,0.01694]
[1760148539411,0.13756742,111660.0,111650.0,0.37774]
[1760148540011,0.13756742,111660.0,111650.0,0.77774]
[1760148540611,0.04809952,111660.0,111650.0,0.77774]
[1760148541111,0.55399286,111660.0,111650.0,0.01694]
[1760148541306,0.13756742,111660.0,111650.0,0.37774]
[1760148541710,0.04809952,111660.0,111650.0,0.77774]
[1760148541916,0.13756742,111660.0,111650.0,0.77774]
[1760148543213,0.43953269,111670.0,111650.0,0.77774]
[1760148543510,0.43953269,111670.0,111650.0,0.37774]
[1760148543709,0.0894679,111660.0,111650.0,0.37774]
[1760148544617,0.56943317,111660.0,111650.0,0.01694]
[1760148544919,0.15300773,111660.0,111650.0,0.01694]
[1760148545114,1.14669334,111660.0,111650.0,0.01694]
[1760148545315,0.86769334,111660.0,111650.0,0.01694]
[1760148545517,0.0904679,111660.0,111650.0,0.37774]
[1760148545720,0.001,111660.0,111650.0,0.77774]
[1760148545921,0.0330908,111660.0,111650.0,0.41694]
[1760148546113,0.0330908,111660.0,111650.0,0.37774]
[1760148546316,0.1215587,111660.0,111650.0,0.37774]
[1760148546515,0.50689334,111660.0,111650.0,0.01694]
[1760148546712,0.001,111660.0,111650.0,0.37774]
[1760148547220,0.0904679,111660.0,111650.0,0.37774]
[1760148547416,0.001,111660.0,111650.0,0.37774]
[1760148547720,0.03308789,111660.0,111650.0,0.77774]
[1760148548319,0.03308789,111660.0,111650.0,0.867216]
[1760148548721,0.001,111660.0,111650.0,0.867216]
[1760148549016,0.03208789,111680.0,111660.0,0.107038]
[1760148549221,0.03208789,111680.0,111670.0,0.73917]
[1760148549519,0.03208789,111680.0,111670.0,1.13917]
[1760148550617,0.03208789,111680.0,111670.0,1.55559544]
[1760148551614,0.03208789,111680.0,111670.0,1.13917]
[1760148552520,0.0894241,111720.0,111710.0,0.01757]
[1760148552821,0.0894241,111720.0,111710.0,0.37837]
[1760148553225,0.0894241,111720.0,111710.0,0.01757]
[1760148553521,0.0894359,111700.0,111690.0,0.37837]
[1760148553918,0.84427496,111700.0,111690.0,0.3608]
[1760148554116,0.0894439,111690.0,111680.0,0.37837]
[1760148555614,0.089439,111700.0,111680.0,0.37837]
[1760148555822,0.089439,111700.0,111690.0,0.37837]
[1760148556324,0.51440168,111710.0,111700.0,0.01757]
[1760148556521,0.15360168,111710.0,111700.0,0.01757]
[1760148557427,0.40360168,111710.0,111700.0,0.01757]
[1760148557618,0.42360168,111710.0,111700.0,0.01757]
[1760148557818,0.0894359,111700.0,111690.0,0.37837]
[1760148558427,0.15360168,111710.0,111700.0,0.01757]
[1760148558922,0.50843434,111720.0,111710.0,0.01757]
[1760148559125,0.51844227,111720.0,111710.0,0.37837]
[1760148559427,0.07417791,111720.0,111710.0,0.37837]
[1760148559819,0.16359781,111720.0,111710.0,0.01757]
[1760148560021,0.0894279,111710.0,111700.0,0.01757]
[1760148560319,0.0894279,111710.0,111700.0,0.37837]
[1760148560724,0.06417791,111720.0,111710.0,0.01757]
[1760148560924,0.02,111720.0,111710.0,0.37837]
[1760148561628,0.0894179,111730.0,111720.0,0.01757]
[1760148561823,0.0894179,111730.0,111720.0,0.37837]
[1760148562820,0.0894179,111730.0,111720.0,0.01757]
[1760148563025,0.15359581,111730.0,111720.0,0.37837]
[1760148563227,0.0894179,111730.0,111720.0,0.37837]
[1760148563618,0.3594179,111730.0,111720.0,0.01757]
[1760148563824,0.0894199,111720.0,111710.0,0.01757]
[1760148564131,0.0894279,111710.0,111700.0,0.01757]
[1760148564423,0.0894359,111700.0,111690.0,0.37837]
[1760148564728,0.13749483,111700.0,111690.0,0.37837]
[1760148565727,0.04805893,111700.0,111690.0,0.77837]
[1760148565924,0.13749043,111710.0,111700.0,0.01757]
[1760148566124,0.13749043,111710.0,111700.0,0.37837]
[1760148566319,0.13748771,111710.0,111700.0,0.37837]
[1760148566527,0.15359971,111720.0,111710.0,0.01757]
[1760148566719,0.71563906,111730.0,111720.0,0.01757]
[1760148566720,0.0894119,111730.0,111720.0,0.01757]
[1760148566927,0.0894119,111730.0,111720.0,0.37837]
[1760148567125,0.13746013,111730.0,111720.0,0.37837]
[1760148567525,0.04804823,111730.0,111720.0,0.37837]
[1760148567726,0.06417791,111760.0,111740.0,0.01757]
[1760148568027,0.51436871,111760.0,111740.0,0.37837]
[1760148568230,0.51436871,111760.0,111750.0,0.37837]
[1760148568231,0.0893908,111760.0,111750.0,0.37837]
[1760148568826,0.0893908,111760.0,111750.0,0.01757]
[1760148569022,0.13739533,111760.0,111750.0,0.37837]
[1760148569431,0.13739533,111760.0,111750.0,0.01757]
[1760148569623,0.13739533,111760.0,111750.0,0.37837]
[1760148569827,0.0893959,111750.0,111740.0,0.37837]
[1760148570634,0.13739513,111760.0,111750.0,0.01757]
[1760148571133,0.13739513,111760.0,111750.0,0.37837]
[1760148571524,0.13739513,111760.0,111750.0,0.01757]
[1760148571724,0.13739513,111760.0,111750.0,0.37837]
[1760148572029,0.0894039,111740.0,111730.0,0.37837]
[1760148572630,0.13739563,111760.0,111740.0,0.01757]
[1760148572825,0.13739563,111760.0,111750.0,0.01757]
[1760148573033,0.13739563,111760.0,111750.0,0.37837]
[1760148573632,0.04800453,111760.0,111750.0,0.77837]
[1760148573938,0.44421896,111770.0,111760.0,0.01757]
[1760148574229,0.44421896,111770.0,111740.0,0.01757]
[1760148574429,0.40880453,111760.0,111740.0,0.01757]
[1760148574630,0.0894095,111740.0,111730.0,0.01757]
[1760148575429,0.35483906,111750.0,111740.0,0.01757]